[Event "ESP-ch Teams Primera 2022"]
[Site "Sanxenxo Pontevedra"]
[Date "2022.09.20"]
[Round "4.18"]
[White "Pablos Tenrero, Raquel"]
[Black "Hernandez Estevez, Yudania"]
[Result "1-0"]
[ECO "B15"]
[WhiteElo "1985"]
[BlackElo "2199"]
[Annotator "TA"]
[PlyCount "169"]
[EventDate "2022.09.17"]
[EventType "team-tourn"]
[EventCountry "ESP"]
[SourceTitle "playchess.com"]
[Source "ChessBase"]
[SourceQuality "1"]
[TimeControl "5400+30"]

{[%evp 18,169,39,29,44,35,41,42,46,26,22,19,47,8,24,13,14,0,20,19,41,13,59,25,69,29,31,-8,6,0,0,0,189,177,321,324,322,314,330,309,384,377,429,427,422,418,418,419,432,439,471,273,379,377,406,393,484,354,350,338,398,371,351,342,349,316,285,249,355,162,366,0,0,0,0,0,0,0,0,0,86,86,86,75,87,93,85,75,95,87,80,77,114,0,0,0,0,0,0,0,8,0,0,0,319,319,311,297,289,285,236,279,264,247,241,233,424,427,411,404,368,313,412,289,273,145,435,415,404,397,531,483,12850,12851,12841,12848,12847,1494,776,0,12848,29938,12849,12817,29940,29944,29936,5434,5401,501,5401,5369,29998,29999]} 1. e4 {[%emt 0:00:39]} c6 {[%emt 0:00:05]} 2. d4 {[%emt 0:00:06]} d5 {[%emt 0:00:06]} 3. Nc3 {[%emt 0:00:09]} dxe4 {[%emt 0:00:19]} 4. Nxe4 {[%emt 0:00:07]} Nf6 {[%emt 0:00:07]} 5. Nxf6+ {[%emt 0:00:11]} exf6 {[%emt 0:00:06]} 6. c3 {[%emt 0:00:21]} Bd6 {[%emt 0:02:38]} 7. Bd3 {[%emt 0:00:10]} O-O {[%emt 0:00:57]} 8. Qc2 {[%emt 0:00:08]} Re8+ {[%emt 0:03:47]} 9. Ne2 {[%emt 0:00:32]} h6 {[%emt 0:03:14]} 10. O-O {[%emt 0:02:41]} Qc7 {[%emt 0:04:47] 10...Nd7 injects fresh life into this line. B15: Caro-Kann: 3 Nc3: 3...g6 and 3...dxe4 4 Nxe4 Nf6 5 Nxf6+ exf6.} 11. h3 {[%emt 0:02:47]} Nd7 {[%emt 0:00:20]} 12. Bd2 {[%emt 0:03:47]} Nf8 {[%emt 0:00:53] White is slightly better.} 13. Rfe1 {[%emt 0:01:18] [#]} Be6 $146 {[%emt 0:02:52]} ({Predecessor:} 13... Bd7 14. Rad1 b5 15. b3 Rab8 16. c4 bxc4 17. bxc4 Bb4 18. Nc3 Rxe1+ 19. Rxe1 a5 20. Ne4 Ne6 21. Bxb4 axb4 {½-½ (21) Sredojevic,I (2428)-Radlovacki,J (2343) Novi Sad 2016}) 14. c4 {[%emt 0:05:02]} Rad8 {[%emt 0:05:03]} 15. Rad1 {[%emt 0:03:16]} (15. c5 $5 {[%cal Rc5d6]} Be7 16. Be3 $14) 15... Qc8 {[%emt 0:06:48][%cal Of8g6]} 16. Bf4 {[%emt 0:11:11]} (16. Bc3 {seems wilder.} Ng6 17. d5 cxd5 18. cxd5 Bxh3 19. Bxg6 fxg6 20. gxh3 Qxh3 21. Ng3) 16... Bb4 {[%emt 0:03:24]} 17. Bd2 {[%emt 0:19:33]} Bxd2 {[%emt 0:03:09]} 18. Rxd2 {[%emt 0:00:09]} Rd6 {[%emt 0:02:08]} (18... Bxh3 19. gxh3 Qxh3 20. Bf5 $16) 19. Red1 {[%emt 0:10:36]} Red8 {[%emt 0:03:42]} (19... Ng6 $11) 20. Be4 {[%emt 0:05:24]} f5 {[%emt 0:05:59]} 21. Bf3 {[%emt 0:01:25]} (21. c5 $5 {[%cal Rc5d6]}) 21... Ng6 {[%emt 0:00:36]} 22. Kh1 {[%emt 0:06:03]} Qc7 {[%emt 0:04:06]} (22... f4 $5 {[%cal Re6h3]}) 23. b4 {[%emt 0:02:32]} Qe7 {[%emt 0:02:08]} 24. b5 {[%emt 0:04:27]} cxb5 {[%emt 0:09:25]} (24... Nh4 $11 25. c5 R6d7 26. bxc6 Nxf3 27. cxd7 Nxd2 28. Qxd2 Qxd7) 25. d5 $1 $18 {[%emt 0:04:48]} Qg5 {[%emt 0:05:57]} (25... Bc8 $142) 26. c5 $1 {[%emt 0:01:54]} (26. cxb5 Nh4 27. Qc3 a6 $11) (26. dxe6 $2 Rxd2 27. Rxd2 Rxd2 $19) 26... R6d7 {[%emt 0:09:52]} 27. Rd4 {[%emt 0:00:10]} Qf6 {[%emt 0:07:04]} 28. Qc3 {[%emt 0:00:11]} (28. dxe6 Rxd4 29. Nxd4 Rxd4) 28... Kh7 {[%emt 0:11:15]} 29. dxe6 {[%emt 0:00:54]} Qxe6 {[%emt 0:00:22]} 30. Rxd7 {[%emt 0:00:22]} Rxd7 {[%emt 0:00:06]} 31. Rxd7 {[%emt 0:00:11]} Qxd7 {[%emt 0:00:04]} 32. Qd4 {[%emt 0:00:06] Prevents Nh4.} Qc7 {[%emt 0:01:10]} 33. Nc3 {[%emt 0:01:20]} a6 {[%emt 0:01:45]} 34. a4 {[%emt 0:01:57]} (34. Qd6 $142 Qc8 35. Nd5) 34... bxa4 {[%emt 0:01:13]} 35. Nxa4 {[%emt 0:00:07]} Qe7 {[%emt 0:01:23]} 36. Qe3 {[%emt 0:01:51]} Qf6 {[%emt 0:00:51]} 37. Nc3 {[%emt 0:00:28]} f4 {[%emt 0:00:11]} 38. Qd3 {[%emt 0:00:12]} Qe7 {[%emt 0:00:06]} 39. Ne4 {[%emt 0:05:56]} f5 {[%emt 0:00:10]} 40. Nd6 {[%emt 0:00:48]} Qe1+ {[%emt 0:00:15]} 41. Kh2 {[%emt 0:00:04]} Qxf2 {[%emt 0:00:11]} 42. Nxb7 {[%emt 0:00:33] Active counter play!} a5 {[%emt 0:01:03]} (42... Qg3+ {is a better defense.} 43. Kg1 Qe1+ 44. Qf1 Qe3+ 45. Qf2 Qc1+ 46. Kh2 Ne5) 43. c6 {[%emt 0:02:35]} (43. Nxa5 Qg3+ 44. Kh1 Qe1+ 45. Kh2 Qg3+ 46. Kh1 Qe1+ 47. Kh2 Qg3+ $11) (43. Qe2 $142 Qg3+ 44. Kh1) 43... a4 $2 {[%emt 0:00:06]} (43... Qg3+ 44. Kg1 Qe1+ 45. Qf1 Qc3) 44. c7 $2 {[%emt 0:00:14]} (44. Qxf5 Qg3+ 45. Kh1 Qe1+ 46. Kh2 Qg3+ 47. Kh1 Qe1+ 48. Kh2 Qg3+ $11) (44. Bd5 $18) 44... Qg3+ $11 {[%emt 0:00:12]} 45. Kg1 {[%emt 0:00:06]} Qe1+ {[%emt 0:00:05]} 46. Qf1 {[%emt 0:00:16]} Qc3 {[%emt 0:00:34]} 47. Qb1 {[%emt 0:04:56]} Qxc7 {[%emt 0:00:07]} 48. Qxf5 {[%emt 0:01:13]} Qc1+ {[%emt 0:01:09]} (48... a3 $11 {keeps the balance.} 49. Qb1 Qf7) 49. Kh2 $16 {[%emt 0:00:05]} Qe1 {[%emt 0:00:25]} 50. Qe4 $1 {[%emt 0:01:07]} Qg3+ {[%emt 0:01:13]} (50... Qxe4 $2 51. Bxe4 a3 52. Bb1 $18) 51. Kg1 {[%emt 0:00:03] Strongly threatening Nc5.} a3 {[%emt 0:00:23]} 52. Kf1 $1 {[%emt 0:00:26] Qa4 is the strong threat.} Qg5 {[%emt 0:00:23]} (52... a2 $2 53. Qa4 $18) 53. Qa4 {[%emt 0:00:16]} Qe7 {[%emt 0:00:57] [#]} 54. Na5 $1 {[%emt 0:00:52] Hoping for Nc4.} Qe3 {[%emt 0:01:07]} 55. Nc4 {[%emt 0:00:24]} (55. Qc2 $16) 55... Qd3+ $11 {[%emt 0:00:38]} 56. Kf2 $1 {[%emt 0:00:49]} Qd4+ {[%emt 0:00:49]} 57. Ke2 {[%emt 0:00:26] aiming for Qc2.} Ne5 {[%emt 0:00:18]} 58. Qc2+ {[%emt 0:00:21]} g6 {[%emt 0:00:34]} (58... Nd3 $5 {[%cal Ra3a2]} 59. Kf1 (59. Qxd3+ $2 Qxd3+ 60. Kxd3 a2 $19) (59. Nxa3 $2 Qe3+ 60. Kf1 Qe1#) 59... Kh8 $11) 59. Nxa3 {[%emt 0:00:51] Threatens to win with Qb3.} Qe3+ {[%emt 0:00:19]} 60. Kf1 {[%emt 0:00:15] And now Qc7+ would win.} Nxf3 $4 {[%emt 0:00:13][%mdl 12288] Endgame KQN-KQN. White now steadily converts the win.} (60... Nd3 $1 $11 {and Black has nothing to worry.} 61. Qc7+ Kh8 62. Qc8+ Kh7 63. Qd7+ Kh8 64. Qc8+ Kh7 65. Qd7+ Kh8 66. Qc8+) 61. Qc7+ $18 {[%emt 0:00:25]} Kh8 {[%emt 0:00:23][%cal Rf3d2]} 62. Qb8+ {[%emt 0:00:15]} Kg7 {[%emt 0:00:53][%cal Rf3d2]} 63. Qb7+ {[%emt 0:00:04]} Kf6 {[%emt 0:00:12][%cal Rf3d2]} 64. Qxf3 {[%emt 0:00:05]} Qc1+ {[%emt 0:00:20]} 65. Kf2 {[%emt 0:00:09] Black must now prevent Qd3.} ({Don't do} 65. Ke2 Qb2+ 66. Kd1 Qd4+ 67. Kc1 Qg1+ 68. Kb2 Qd4+ 69. Kc1 Qg1+ 70. Kd2 Qd4+ 71. Qd3 Qf2+ 72. Qe2 Qd4+ 73. Kc2 (73. Qd3 Qf2+ 74. Qe2 Qd4+ 75. Kc1 g5 $18) 73... Qa4+ 74. Kb2 Qb4+ 75. Ka2 Qa4 $18) 65... Qc5+ {[%emt 0:00:15]} 66. Ke2 {[%emt 0:00:21]} g5 $2 {[%emt 0:00:22]} (66... Qe5+ 67. Kd3 Qd6+ 68. Kc2 Qc5+ 69. Kb2 Qb6+ 70. Kc1 Qg1+ 71. Kd2 Qd4+ 72. Qd3 Qf2+ 73. Qe2 Qd4+ 74. Kc2 (74. Qd3 Qf2+ 75. Kc1 Qg1+ 76. Qd1 Qxg2 $14) 74... Qa4+ 75. Kb2 Qb4+ 76. Ka2 Qa4) 67. Qd3 {[%emt 0:00:51]} Qe5+ {[%emt 0:00:57]} 68. Kf1 {[%emt 0:01:11]} Qa1+ {[%emt 0:00:21]} 69. Kf2 {[%emt 0:00:05]} h5 {[%emt 0:01:17]} 70. Nc4 {[%emt 0:00:27]} Qa7+ {[%emt 0:00:40]} 71. Kf3 {[%emt 0:01:25]} (71. Kf1 $18) 71... Qb7+ $2 {[%emt 0:00:13][%mdl 8192] [#]} (71... g4+ $16 {might work better.} 72. Ke2 (72. Kxf4 Qf2+ 73. Ke4 Qxg2+ 74. Kd4 gxh3 $11) (72. hxg4 hxg4+ 73. Ke4 Qh7+ 74. Kd4 Qc7 $16) 72... Qa2+ 73. Nd2 Qe6+ 74. Kf1 Qe5) 72. Qe4 $1 {[%emt 0:00:40]} ({Weaker is} 72. Kf2 Qa7+ 73. Kf1 Qa1+ 74. Kf2 Qa7+ $18) 72... Qb3+ {[%emt 0:00:07]} 73. Kf2 {[%emt 0:00:20]} Qg3+ {[%emt 0:00:23]} 74. Kf1 {[%emt 0:00:06] White threatens Qd4+ and mate.} g4 {[%emt 0:00:53]} (74... Qb3 $142 75. h4 Qd1+ 76. Kf2 Qg4 77. Qe5+ Kg6 78. Qe8+ Kf6 79. Qh8+ Kf5 80. Qh7+ Ke6 81. Qg6+ Kd5 82. Qxg5+ Ke6 83. Qe5+ Kd7 84. Qd6+ Ke8 85. Qb8+ Ke7 86. Qd6+ Ke8 87. Qb8+ Ke7 88. Qd6+ Ke8) 75. Qe5+ {[%emt 0:00:07]} Kg6 {[%emt 0:00:20]} 76. Qe6+ {[%emt 0:00:08]} Kg7 {[%emt 0:00:41]} 77. Qe7+ {[%emt 0:00:18]} (77. Ne5 $142 gxh3 78. gxh3) 77... Kg6 {[%emt 0:00:40]} 78. Qe6+ {[%emt 0:00:37]} (78. Qe8+ $142 Kg7 79. Qe5+ Kg6 80. Qe4+ Kg7 81. Nd6) 78... Kg7 {[%emt 0:00:32]} 79. Ne5 {[%emt 0:00:04]} gxh3 {[%emt 0:00:22]} 80. Qxh3 {[%emt 0:02:21]} Qg5 {[%emt 0:00:29]} 81. Qd7+ {[%emt 0:00:17]} Kf6 {[%emt 0:00:52]} 82. Qd6+ {[%emt 0:00:29]} (82. Qd8+ $142 Kf5 83. Qd5 Qg7 84. Nf3+ Kg6 85. Qg5+ Kf7 86. Ne5+ Kg8 87. Qxh5) 82... Kf5 {[%emt 0:00:15]} 83. Nf3 {[%emt 0:00:42]} (83. Qd5 $142 {Intending Nf3+ and mate.} Qg7 84. Nd3+ Kf6 85. Qe5+ Kf7 86. Qxh5+ Kg8 87. Qe8+ Qf8 88. Qe4) 83... Qg7 {[%emt 0:00:30]} (83... Qf6 $142 84. Qd3+ Ke6) 84. Qd5+ {[%emt 0:00:17]} Kg4 {[%emt 0:00:26]} 85. Qe6+ {[%emt 0:00:09] Weighted Error Value: White=0.33/Black=0.41} 1-0

[Event "ESP-ch Teams Primera 2022"]
[Site "Sanxenxo Pontevedra"]
[Date "2022.09.20"]
[Round "4.19"]
[White "Alsina Leal, Daniel"]
[Black "Cordova, Emilio"]
[Result "0-1"]
[ECO "B28"]
[WhiteElo "2525"]
[BlackElo "2550"]
[Annotator "TA"]
[PlyCount "102"]
[EventDate "2022.09.17"]
[EventType "team-tourn"]
[EventCountry "ESP"]
[SourceTitle "playchess.com"]
[Source "ChessBase"]
[SourceQuality "1"]
[TimeControl "5400+30"]

{[%evp 11,102,53,46,56,66,53,53,55,54,47,60,47,47,37,70,75,76,75,65,52,81,69,77,0,0,0,0,0,0,0,0,0,10,0,0,0,4,0,0,0,25,0,0,0,0,-18,1,-11,0,0,0,0,0,-49,-46,-66,-70,-37,10,9,14,0,0,0,0,0,0,0,-6,-51,-51,-51,-51,-51,-51,-51,-51,-51,-51,-51,-51,-57,0,-567,-549,-482,-468,-29978,-29973,-29972,-29973,-5716,-5056]} 1. e4 c5 2. Nf3 a6 3. c4 e6 4. Nc3 b6 5. d4 cxd4 6. Nxd4 Bb7 {BESTDEEP} 7. Be2 {A34: Symmetrical English: 2 Nc3, lines with ...d5.} Qc7 {CPLX 2.1 10 (Bf8-b4) (=5)} 8. Be3 {BESTDEEP} Nf6 {BESTDEEP} 9. f3 {CPLX 2.4. White is slightly better.} Nc6 {CPLX 2.2} 10. Qd2 {BESTDEEP is the legacy move (10.0-0).} Rc8 {[#] CPLX 2.4 13 (Bf8-e7) (=5)} 11. Nxc6 $146 {CPLX 2.4 13 (Ra1-c1) (=3)} ({Predecessor:} 11. Rc1 Bc5 12. O-O Nxd4 13. Bxd4 O-O 14. Rfd1 Rfd8 15. a3 Bxd4+ 16. Qxd4 Qc5 17. e5 {1-0 (55) Sears,F (1836)-Ali,I (1812) Port of Spain 2015}) 11... Bxc6 {RECAPT 0 (d7xc6) (=4)} 12. Rc1 {CPLX 2.2 10 (Ra1-d1) (=4)} Qb8 {CPLX 2.2 33 (Bf8-e7) (=8)} 13. Bf4 {BESTDEEP} d6 {CPLX 2.8 1 (e6-e5) (=7)} 14. O-O {CPLX 2.3} Be7 {CPLX 2.3 0 (Rc8-d8) (=6)} 15. Rfd1 {[%cal Rf4d6] CPLX 2.3} Rd8 $1 {DEEPSTRONG} 16. b4 {BESTDEEP} O-O {CPLX 2.4} 17. b5 {CPLX 2.3 77 (a2-a4) (=9)} ({White should try} 17. a4 $16) 17... axb5 $1 $11 {CPLX 2.9} 18. Nxb5 {RECAPT} e5 {CPLX 2.8} 19. Bg5 {BESTDEEP} h6 {CPLX 2.7} 20. Bxf6 {BESTDEEP} Bxf6 {RECAPT} 21. Rc3 {BESTDEEP} ({Not} 21. Nxd6 $2 Bg5 22. Qb4 Bxc1 23. Rxc1 Qxd6 $19) 21... Be7 {CPLX 2.6 10 (Bf6-g5) (=4)} 22. Rb3 {CPLX 2.5 10 (Rd1-b1) (=7)} Rd7 {BESTDEEP} 23. Nc3 {CPLX 2.5 0 (Rd1-b1) (=6)} Qa7 {CPLX 2.4 4 (Be7-g5) (=4)} 24. Kh1 {CPLX 2.4 4 (Nc3-d5) (=6)} (24. Nd5 {looks sharper.} Bg5 25. Qb2 b5+ 26. Kh1) 24... Ra8 {BESTDEEP} 25. Rdb1 {BESTDEEP} Bd8 {CPLX 2.5 25 (Rd7-b7) (=5)} 26. Bf1 {CPLX 2.5 25 (Be2-d1) (=7)} Qa5 {BESTDEEP} 27. R1b2 {CPLX 2.6} Qc5 {BESTDEEP} 28. Nd5 {[%cal Rd5b6] CPLX 2.8 18 (g2-g3) (=7)} Bxd5 {CPLX 3.1 19 (Rd7-a7) (=5)} 29. Rb5 {CPLX 3.3 12 (c4xd5) (=7)} Be6 {CPLX 3.6 11 (Bd8-g5) (=5)} 30. Rxc5 {EASY} dxc5 {RECAPT} 31. Qe1 {CPLX 3.4} Rd4 {CPLX 3.1} 32. Rd2 {CPLX 3.2 49 (Rb2-c2) (=8)} (32. Rc2 $11) 32... b5 $15 {Threatens to win with ...Ba5. DEEPSTRONG} 33. Rxd4 $1 {DEEPSTRONG} (33. cxb5 $2 Ba5 34. Rxd4 Bxe1 $19) 33... exd4 {RECAPT} 34. cxb5 {CPLX 3.3} Rxa2 {CPLX 3.4 47 (c5-c4) (=6)} (34... c4 $15 35. Qd1 d3 36. Bxd3 cxd3 37. Qxd3 Bb6) 35. Qb1 $11 {CPLX 3.4} Ra3 {BESTDEEP} 36. h3 {CPLX 3.2 14 (f3-f4) (=8)} Bc7 {Hoping for ...Rb3. CPLX 3.3 0 (Ra3-b3) (=6)} 37. b6 {EASY} Bg3 {White must now prevent ...Rb3. CPLX 3.9} 38. Qc1 {CPLX 3.7} Rc3 {CPLX 4.0} 39. Qd2 {BESTDEEP} g5 {Inhibits f4. BESTDEEP} 40. h4 {MISSDEEP-Qd2-d1 45 (Qd2-d1) (=8)} Bf4 {[%mdl 1024] Black has compensation. CPLX 4.2} 41. Qf2 {BESTDEEP} d3 $1 {DEEPSTRONG} 42. g3 $1 {CPLX 4.4} d2 {CPLX 4.3} 43. Be2 {CPLX 4.9} Be3 $36 {[%mdl 2048] Black fights for an advantage. BESTDEEP} 44. b7 $1 {DEEPSTRONG} ({Avoid the trap} 44. Qf1 $2 Rc1 45. Bd1 c4 46. hxg5 c3 $19) 44... Bxf2 {EASY} 45. b8=Q+ {EASY} Kh7 {Strongly threatening ...Re3. The board is on fire. EASY} 46. hxg5 {[%cal Og5g6] g6+! is the strong threat. CPLX 4.9} hxg5 {CPLX 5.2 57 (Bf2-d4) (=6)} ({Better is} 46... Bd4 $1 $15 47. g6+ Kxg6 48. Qg8+ Kf6 49. e5+ Kxe5 50. Qb8+ Kd5) 47. Qe5 $2 {[%mdl 8192] [#] RELBLUND 400 (Qb8-d8) (=17)} (47. Qd8 $1 $11) 47... Rc1+ $1 $19 {DEEPSTRONG=>BLUNDERREACT} 48. Kg2 {[#] CPLX 5.1} Be3 {( -> ...Re1). BESTDEEP} 49. Qd6 {RELBLUND 400 (f3-f4) (=25)} (49. f4 $19 Re1 50. Bf3 Rg1+ 51. Kh2 Rxg3 52. Qxe6 fxe6 53. Kxg3 gxf4+ 54. Kg4) 49... Re1 {CPLX 5.4 5 (Rc1-g1) (=5)} 50. Qd3 {[#] EASY} c4 $1 {EASY} 51. Qxe3 {BESTDEEP} d1=Q {[%mdl 64] Pin.  Weighted Error Value: White=0.30/Black=0.06 (flawless)} 0-1

[Event "ESP-ch Teams Primera 2022"]
[Site "Sanxenxo Pontevedra"]
[Date "2022.09.20"]
[Round "4.20"]
[White "Krysa, Leandro"]
[Black "Lorenzo De La Riva, Lazaro"]
[Result "1/2-1/2"]
[ECO "A06"]
[WhiteElo "2535"]
[BlackElo "2430"]
[Annotator "TA"]
[PlyCount "112"]
[EventDate "2022.09.17"]
[EventType "team-tourn"]
[EventCountry "ESP"]
[SourceTitle "playchess.com"]
[Source "ChessBase"]
[SourceQuality "1"]
[TimeControl "5400+30"]

{[%evp 9,112,21,22,13,13,13,17,19,18,11,13,15,16,16,14,8,15,2,42,41,45,45,70,68,93,87,129,113,158,142,198,204,189,184,196,132,129,133,186,187,165,186,185,37,37,41,41,41,51,6,382,378,370,374,464,458,450,446,407,255,246,267,259,273,273,265,246,256,256,10,11,0,0,0,0,0,0,0,0,0,22,0,0,0,12,0,12,0,0,0,0,0,0,0,0,0,0,0,0,0,6,0,0,0,0]} 1. Nf3 {Roiz,M} d5 2. g3 Bg4 3. Bg2 Nf6 4. O-O e6 5. h3 Bh5 {MISS-Bg4xf3 1 (Bg4xf3) (=1)} 6. d4 {[%cal Oc2c4] CPLX 2.0. A07: Réti Opening: New York and Capablanca Systems.} Nbd7 {CPLX 2.0 0 (Bf8-e7) (=1)} 7. c4 {BESTDEEP} c6 {BESTDEEP} 8. cxd5 {CPLX 2.2} exd5 {RECAPT 0 (c6xd5) (=0)} 9. Qb3 {CPLX 2.0 7 (Nf3-h4) (=2) 9.Ne5 deserves study.} Qb6 {CPLX 2.4} 10. Qe3+ {CPLX 2.5} Be7 $1 {DEEPSTRONG} 11. Nh4 {BESTDEEP} Bg6 {Prevents Nf5. CPLX 2.5} 12. Nc3 {[%cal Ob2b4] CPLX 2.7 6 (Nh4xg6) (=2)} Qd8 {BESTDEEP} 13. b4 {[#] MISS-Nh4xg6 13 (Nh4xg6) (=3)} Nb6 $146 {CPLX 2.4 40 (b7-b5) (=5)} ({Predecessor:} 13... b5 14. a4 a5 15. Nxg6 hxg6 16. bxa5 b4 17. Na2 O-O 18. Bd2 Re8 19. Qb3 c5 20. dxc5 Nxc5 21. Qxb4 {1-0 (74) Vachier Lagrave,M (2803)-Bluebaum,M (2634) Karlsruhe/Baden-Baden 2017 CBM 178 [Roiz,M]}) 14. Nxg6 {EASY} hxg6 {RECAPT} 15. b5 {CPLX 2.5} Nc4 {CPLX 2.6 25 (Qd8-d7) (=6)} 16. Qd3 {CPLX 3.0} Qd7 {CPLX 2.5 25 (Be7-b4) (=8)} 17. e4 {[%cal Be2e4,Be4e5][%mdl 32] CPLX 2.7 6 (b5xc6) (=3)} Nb6 {CPLX 3.0 42 (0-0) (=10)} 18. e5 {CPLX 2.8} Ng8 {CPLX 2.9 45 (Nf6-h7) (=13)} 19. Rb1 {CPLX 2.7} Qf5 {CPLX 2.8 56 (Be7-d8) (=16)} (19... Bd8 $16 20. bxc6 bxc6) 20. Qxf5 $18 {EASY} gxf5 {RECAPT} 21. a4 {BESTDEEP} Nc4 {EASY} 22. bxc6 {CPLX 2.4 64 (Nc3-d1) (=6)} (22. Nd1 $18) 22... bxc6 $16 {RECAPT} 23. h4 {BESTDEEP} Bd8 {[#] CPLX 2.4 53 (Nc4-a5) (=15)} (23... Na5 $16 24. Rd1 Bd8) 24. Nxd5 $1 $18 {[%mdl 512] BESTDEEP} cxd5 {RECAPT} 25. Bxd5 {RECAPT} Rc8 {[%cal Ba8c8,Bc8c7,Bc7e7][%mdl 32] Inhibits Bc6+. EASY} 26. Bb7 {This bishop pair is nice. RELBLUND 148 (e5-e6) (=12)} ({White has to play} 26. e6 $1 $18 {[%cal Re6f7]} Nd6 27. exf7+ Nxf7 28. Re1+ Ne7 29. Ba3) 26... Rc7 $14 {EASY} 27. d5 {And now Bf4 would win. BESTDEEP} Nxe5 {EASY} 28. Re1 $36 {[%mdl 2048] White is more active. CPLX 2.9} Re7 {aiming for ...Nf3+. CPLX 3.3} 29. Kg2 {Prevents Nf3. CPLX 3.0 45 (Bc1-a3) (=12)} Ba5 $2 {[%mdl 8192] [#] MISSDEEP-Bd8-c7 376 (Bd8-c7) (=27)} (29... Bc7 $1 $11) 30. Rxe5 $1 $18 {[%mdl 512] DEEPSTRONG=>BLUNDERREACT} Rxe5 {RECAPT} 31. Bc6+ {DEEPSTRONG} Kd8 {...Bc7 is the strong threat. CPLX 2.5 90 (Ke8-e7) (=28)} 32. Rb8+ {DEEPSTRONG} Kc7 {BESTDEEP} 33. Rb7+ {CPLX 4.0} Kc8 {White must now prevent ...Re7. CPLX 2.8} 34. Bf4 {CPLX 3.1 152 (d5-d6) (=15)} f6 {BESTDEEP=>BLUNDERREACT} 35. d6 {[%cal Bd5d6,Bd6d7][%mdl 1056] Inhibits Ne7. White has strong compensation. BESTDEEP} Rc5 {[#] EASY} 36. d7+ $1 {CPLX 3.7} Kd8 {LEGAL} 37. Rb8+ {EASY} Ke7 {[#] LEGAL} 38. Re8+ $1 {DEEPSTRONG} Kf7 {LEGAL} 39. Bd2 $2 {RELBLUND 246 (Bc6-b7) (=20)} Ne7 $1 $11 {DEEPSTRONG=>BLUNDERREACT. The position is equal.} 40. Rxh8 {CPLX 4.6 11 (Bc6-b5) (=20)} Nxc6 {EASY} 41. Bxa5 {CPLX 3.5} Rxa5 {[%mdl 4096] Endgame KRN-KR. RECAPT} 42. Rc8 {CPLX 3.1} Ke7 {CPLX 3.3 0 (Kf7-e6) (=20)} 43. Rxc6 {[%cal Oc6d6] Threatens to win with Rd6! EASY} Kxd7 {KR-KR. BESTDEEP} 44. Rc4 {EASY} Re5 {CPLX 2.0 22 (g7-g6) (=19)} 45. Kf3 {CPLX 2.0 22 (Rc4-b4) (=18)} (45. Rb4 $5 {[%cal Rb4b7]} Kc7 46. h5 $11) 45... Kd6 {CPLX 2.0 0 (g7-g6) (=19)} 46. h5 {CPLX 2.0 0 (Rc4-c8) (=18)} Ra5 {CPLX 2.0 12 (a7-a6) (=19)} 47. Kf4 {CPLX 2.0 12 (Kf3-e2) (=17)} Ke6 {CPLX 2.0 12 (Kd6-d7) (=19)} 48. Rc7 {Strongly threatening Kf3. CPLX 2.0 12 (Kf4-e3) (=17)} Rxa4+ {EASY} 49. Kf3 {CPLX 2.0} Rg4 {BESTDEEP} (49... Ra3+ 50. Kg2 Ra5 51. Rxg7 $16) 50. Rxa7 {CPLX 2.0 0 (Rc7-c6) (=17)} Rg5 {BESTDEEP} 51. Kf4 {CPLX 2.0 0 (h5-h6) (=16)} Rg4+ {CPLX 2.0 0 (Rg5xh5) (=17)} 52. Ke3 {BESTDEEP} Re4+ {CPLX 2.0 0 (Rg4-g5) (=17)} 53. Kf3 {CPLX 2.0} Rg4 {EASY} 54. Kg2 {Hoping for f4. CPLX 2.0 0 (Ra7-a1) (=15)} f4 {CPLX 2.0 6 (Rg4-g5) (=16)} 55. Kh3 {MISS-Kg2-f3 6 (Kg2-f3) (=15)} f5 {BESTDEEP} 56. Ra6+ {CPLX 2.0 0 (g3xf4) (=15)} Ke5 {Black defended with fortune.  Weighted Error Value: White=0.19 (very precise) /Black=0.20 (precise)} 1/2-1/2